Cogmind - Beta 11.1 @@@ ROGUE MODE // 2022.12.10 @ 18:52:29 Player: Raragi Result: Destroyed by S-27 Virus with Autogun Performance ------------- Evolutions (4) 2000 Regions Visited (7) 1400 Robots Destroyed (15) 75 Value Destroyed (361) 361 Prototype IDs (5) 100 Alien Tech Used (0) 0 Bonus (0) 0 TOTAL SCORE: 3936 Bonus ------- None Cogmind --------- Core Integrity 0/850 Matter 216/300 Energy 100/100 System Corruption 0% Temperature Cool (0) Movement Core (50) Location -6/Lower Caves Parts ------- > --- POWER (2) -------- (None) > --- PROPULSION (5) --- (None) > --- UTILITY (6) ------ Improved Signal Interpreter Improved Terrain Scan Processor > --- WEAPON (2) ------- (None) > --- INVENTORY (5) ---- Improved Flight Unit Targeting Computer ECM Suite Hacking Suite Proton Missile Launcher Peak State ------------ > --- POWER ------------ Light Deuterium Engine Micro Nuclear Core > --- PROPULSION ------- Improved Flight Unit Xenon Bombardment Thruster Xenon Bombardment Thruster Xenon Bombardment Thruster > --- UTILITY ---------- Medium Storage Unit Weight Redist. System Sensor Array Improved Terrain Scanner Improved Terrain Scan Processor > --- WEAPON ----------- Precision Beam Rifle Precision Beam Rifle > --- INVENTORY -------- VTOL Module Improved Flight Unit Improved Flight Unit Improved Flight Unit Improved Flight Unit Xenon Bombardment Thruster Targeting Computer ECM Suite Hacking Suite [Rating: 42] Favorites ----------- Power Ion Engine Engine Ion Engine Power Core Micro Nuclear Core Propulsion Improved Flight Unit Treads Armored Treads Leg Aluminum Leg Flight Unit Improved Flight Unit Utility Medium Storage Unit Device Weight Redist. System Storage Medium Storage Unit Processor Transport Network Coupler Protection Light Armor Plating Weapon EM Pulse Gun Energy Gun EM Pulse Gun Ballistic Gun Light Assault Rifle Ballistic Cannon Light Cannon Launcher Grenade Launcher Build | -11 -10 -9 -9 -8 -7 -6 -6 ------- Run | Scr Mat Mat Min Mat Fac Fac Low Slots Evolved 8 | . . 2 . 2 2 2 . Power 1 | . . . . . 1 . . Propulsion 3 | . . 1 . 1 . 1 . Utility 4 | . . 1 . 1 1 1 . Weapon . | . . . . . . . . Parts Attached 49 | . 8 15 . 19 5 . 2 Power 3 | . 1 . . 1 1 . . Engine 2 | . 1 . . 1 . . . Core 1 | . . . . . 1 . . Reactor . | . . . . . . . . Propulsion 18 | . 1 6 . 9 . . 2 Treads 3 | . . 3 . . . . . Leg 1 | . 1 . . . . . . Wheel . | . . . . . . . . Hover . | . . . . . . . . Flight 14 | . . 3 . 9 . . 2 Utility 14 | . 2 3 . 5 4 . . Device 6 | . . 1 . 2 3 . . Storage 3 | . 1 . . 2 . . . Processor 3 | . 1 . . 1 1 . . Hackware . | . . . . . . . . Protection 2 | . . 2 . . . . . Artifact . | . . . . . . . . Weapon 14 | . 4 6 . 4 . . . Energy Gun 10 | . 3 3 . 4 . . . Energy Cannon . | . . . . . . . . Ballistic Gun 1 | . . 1 . . . . . Ballistic Cannon 2 | . . 2 . . . . . Launcher 1 | . 1 . . . . . . Special Weapon . | . . . . . . . . Impact Weapon . | . . . . . . . . Slashing Weapon . | . . . . . . . . Piercing Weapon . | . . . . . . . . Special Melee Weapon . | . . . . . . . . Unidentified Prototypes 3 | . . 2 . 1 . . . Parts Lost 18 | . 1 3 . . 4 . 10 Power 3 | . 1 . . . 2 . . Propulsion 7 | . . 1 . . 1 . 5 Utility 4 | . . . . . 1 . 3 Weapon 4 | . . 2 . . . . 2 Highest Loss Streak 9 | . 1 3 . . 2 . 9 To Critical Strikes . | . . . . . . . . Average Slot Usage (%) 85 | . 92 87 100 92 88 66 40 Engine 9 | . 14 11 11 9 3 . . Treads 4 | . . 16 . . . . . Leg 9 | . 28 4 . . . . . Flight 13 | . . 8 33 36 29 20 10 Device 5 | . . 2 11 13 19 13 5 Storage 10 | . 14 11 11 9 7 6 4 Processor 9 | . 7 11 11 7 7 13 13 Protection 1 | . . 5 . . . . . Energy Gun 15 | . 19 11 22 17 15 13 6 Ballistic Gun 2 | . 6 . . . . . . Ballistic Cannon 1 | . . 5 . . . . . Naked Turns . | . . . . . . . . Heaviest Build 27 | 13 20 22 21 21 27 14 14 Greatest Support 60 | 20 20 60 21 29 29 17 17 Greatest Overweight (x) 4 | . 1 4 . . 1 . 1 Average Overweight (x) . | . . . . . . . . Largest Inventory Capacity 25 | . 10 10 10 25 10 10 10 Average Capacity 9 | . 9 10 10 10 10 10 9 Most Carried 12 | . 8 10 10 12 10 10 10 Average Carried 8 | . 7 9 9 9 9 10 8 Final Capacity 10 | 8 10 10 10 10 10 10 5 Final Carried 10 | 6 8 10 10 10 10 10 5 Class Distribution -------------------- 79% | Mutant 17% | Sprinter Dominant Class ---------------- Mutant | -10/Materials Mutant | -9/Materials Mutant | -9/Mines Sprinter | -8/Materials Sprinter | -7/Factory Mutant | -6/Factory Mutant | -6/Lower Caves Resources | -11 -10 -9 -9 -8 -7 -6 -6 ----------- Run | Scr Mat Mat Min Mat Fac Fac Low Matter Collected 581 | 164 75 236 . 106 . . . Remotely . | . . . . . . . . Salvage Created 582 | . 95 277 104 106 . . . Parts 37 | . 6 20 7 4 . . . Haulers Intercepted 4 | . 1 1 . 2 . . . Recyclers Shooed . | . . . . . . . . Parts Field Recycled . | . . . . . . . . Retrieved Matter . | . . . . . . . . Parts Self-Destructed . | . . . . . . . . Prevented . | . . . . . . . . Kills | -11 -10 -9 -9 -8 -7 -6 -6 ------- Run | Scr Mat Mat Min Mat Fac Fac Low Combat Hostiles Destroyed 10 | . 3 5 2 . . . . Guns 3 | . 1 . 2 . . . . Cannons 5 | . . 5 . . . . . AOE 2 | . 2 . . . . . . Classes Destroyed 5 | . 2 3 . . . . . Hauler 4 | . 1 1 . 2 . . . Operator 1 | . . 1 . . . . . Swarmer 3 | . 3 . . . . . . Grunt 4 | . . 2 2 . . . . Sentry 3 | . . 3 . . . . . Best Kill Streak 3 | . 3 2 2 1 . . . Combat Bots Only 3 | . 3 2 2 . . . . Max Kills in Single Turn 2 | . 2 1 1 1 . . . Gunslinging . | . . . . . . . . Exploded 2 | . 2 . . . . . . Melee . | . . . . . . . . Uniques/NPCs Destroyed . | . . . . . . . . Combat | -11 -10 -9 -9 -8 -7 -6 -6 -------- Run | Scr Mat Mat Min Mat Fac Fac Low Damage Taken 2403 | . 251 197 82 122 258 46 1447 Core 1037 | . 37 30 17 33 68 21 831 Absorbed by Shields . | . . . . . . . . Core Remaining (%) 91 | 100 85 . 88 94 90 . . Volleys Fired 31 | . 7 15 5 4 . . . Largest 2 | . 2 2 2 2 . . . Hottest 122 | . 80 80 112 122 . . . Shots Fired 61 | . 14 29 10 8 . . . Gun 48 | . 12 18 10 8 . . . Cannon 11 | . . 11 . . . . . Launcher 2 | . 2 . . . . . . Special . | . . . . . . . . Kinetic 14 | . 3 11 . . . . . Thermal 29 | . . 11 10 8 . . . Explosive 2 | . 2 . . . . . . Electromagnetic 16 | . 9 7 . . . . . Robot Hit Streak 16 | . 6 16 6 4 . . . Robot Miss Streak 3 | . 3 3 1 2 . . . Penetration Max . | . . . . . . . . Secondary Targets . | . . . . . . . . Shots Hit Robots 42 | . 7 24 7 4 . . . Core Hits 26 | . 6 15 3 2 . . . Critical Kills . | . . . . . . . . Critical Parts Destroyed . | . . . . . . . . Critical Strikes 1 | . . . 1 . . . . Burn 1 | . . . 1 . . . . Melee Attacks . | . . . . . . . . Impact . | . . . . . . . . Slashing . | . . . . . . . . Piercing . | . . . . . . . . Sneak Attacks . | . . . . . . . . Combat Hostiles . | . . . . . . . . Follow-up Attacks . | . . . . . . . . Damage Inflicted 819 | . 232 379 141 67 . . . Guns 469 | . 82 179 141 67 . . . Cannons 176 | . . 176 . . . . . Explosions 163 | . 141 22 . . . . . Melee . | . . . . . . . . Ramming 11 | . 9 2 . . . . . Kinetic 192 | . 16 176 . . . . . Thermal 341 | . . 133 141 67 . . . Explosive 141 | . 141 . . . . . . Electromagnetic 134 | . 66 68 . . . . . Impact . | . . . . . . . . Slashing . | . . . . . . . . Piercing . | . . . . . . . . Highest Corruption . | . . . . . . . . Average Corruption . | . . . . . . . . Corruption Purged . | . . . . . . . . Corruption Blocked . | . . . . . . . . Overload Shots . | . . . . . . . . Overflow Damage 11 | . . 11 . . . . . Projectiles . | . . . . . . . . Explosions 11 | . . 11 . . . . . Melee . | . . . . . . . . Knockbacks 1 | . . 1 . . . . . Impact . | . . . . . . . . Kinetic 1 | . . 1 . . . . . Secondary . | . . . . . . . . Self-Inflicted Damage 89 | . 62 27 . . . . . Shots 3 | . 2 1 . . . . . Rammed 1 | . . 1 . . . . . Targets Rammed 2 | . 1 1 . . . . . Kicked 1 | . 1 . . . . . . Crushed . | . . . . . . . . Highest Temperature 303 | . 36 51 303 133 10 . . Average Temperature 62 | . 15 18 153 51 4 . . Received Heat Transfer 180 | . . 69 48 27 18 18 . Siege Activations . | . . . . . . . . Robots Corrupted . | . . . . . . . . Combat Hostiles . | . . . . . . . . Parts Fried . | . . . . . . . . Impact Corruptions . | . . . . . . . . Robots Melted . | . . . . . . . . Combat Hostiles . | . . . . . . . . Parts Melted 2 | . . . 1 1 . . . Heat Transferred 818 | . . 300 370 148 . . . Parts Sabotaged . | . . . . . . . . Parts Stolen . | . . . . . . . . Parts Stripped . | . . . . . . . . Power Chain Reactions 1 | . . 1 . . . . . Missiles Intercepted . | . . . . . . . . Alert | -11 -10 -9 -9 -8 -7 -6 -6 ------- Run | Scr Mat Mat Min Mat Fac Fac Low Peak Influence 319 | . 71 319 96 129 190 109 . Initial 88 | . . 25 46 37 65 88 . Average 78 | . 24 138 93 59 89 89 . Maximum Alert Level 1 | . . 1 . . . . . Low Security (%) 89 | . 100 64 100 100 100 100 . Level 1 10 | . . 35 . . . . . Level 2 . | . . . . . . . . Level 3 . | . . . . . . . . Level 4 . | . . . . . . . . Level 5 . | . . . . . . . . High Security . | . . . . . . . . Max Security . | . . . . . . . . Squads Dispatched 1 | . . 1 . . . . . Investigation . | . . . . . . . . Extermination . | . . . . . . . . Reinforcement 1 | . . 1 . . . . . Assault . | . . . . . . . . Garrison . | . . . . . . . . Intercept . | . . . . . . . . Searches Triggered . | . . . . . . . . Construction Impeded . | . . . . . . . . Haulers Reinforced . | . . . . . . . . Active Scanning Responses . | . . . . . . . . Cargo Convoy Interrupts . | . . . . . . . . Stealth | -11 -10 -9 -9 -8 -7 -6 -6 --------- Run | Scr Mat Mat Min Mat Fac Fac Low Distress Signals 2 | . . 1 . 1 . . . Communications Jammed . | . . . . . . . . Distress Signals . | . . . . . . . . Times Spotted 53 | . 6 10 2 14 13 1 7 Peak Tracking Total 12 | . 3 7 2 12 6 1 4 Tactical Retreats 8 | . 1 2 . 1 3 . 1 Traps | -11 -10 -9 -9 -8 -7 -6 -6 ------- Run | Scr Mat Mat Min Mat Fac Fac Low Traps Triggered 3 | . 3 . . . . . . Indirectly . | . . . . . . . . Trap Hack Attempts . | . . . . . . . . Triggered . | . . . . . . . . Disarmed . | . . . . . . . . Reprogrammed . | . . . . . . . . Reused . | . . . . . . . . Traps Extracted . | . . . . . . . . Installed . | . . . . . . . . Triggered . | . . . . . . . . Machines | -11 -10 -9 -9 -8 -7 -6 -6 ---------- Run | Scr Mat Mat Min Mat Fac Fac Low Machines Disabled 1 | . 1 . . . . . . Max in Single Turn 1 | . 1 . . . . . . Machines Sabotaged . | . . . . . . . . Garrisons Compromised . | . . . . . . . . Overloaded Fab Kills . | . . . . . . . . Hacking | -11 -10 -9 -9 -8 -7 -6 -6 --------- Run | Scr Mat Mat Min Mat Fac Fac Low Machines Accessed 13 | . 3 3 . 2 4 1 . Terminals 10 | . 2 2 . 2 3 1 . Fabricators 1 | . . . . . 1 . . Repair Stations . | . . . . . . . . Recycling Units 1 | . 1 . . . . . . Scanalyzers 1 | . . 1 . . . . . Garrison Access . | . . . . . . . . Total Hacks 36 | . 7 13 . 5 7 4 . Successful 26 | . 7 13 . 3 2 1 . Failed 10 | . . . . 2 5 3 . Catastrophic 1 | . . . . 1 . . . Database Lockouts . | . . . . . . . . Manual 2 | . . 1 . 1 . . . Terminals 30 | . 6 10 . 5 5 4 . Fabricators 2 | . . . . . 2 . . Repair Stations . | . . . . . . . . Recycling Units 1 | . 1 . . . . . . Scanalyzers 3 | . . 3 . . . . . Garrison Access . | . . . . . . . . Terminal Hacks 22 | . 6 10 . 3 2 1 . Record 9 | . 3 5 . 1 . . . Robot Analysis 4 | . 2 . . 1 . 1 . Prototype ID Bank 1 | . . 1 . . . . . Open DSF 1 | . . . . . 1 . . Emergency Access Points 2 | . . 1 . 1 . . . Locate Traps 1 | . . . . . 1 . . Dispatch Records 1 | . 1 . . . . . . Maintenance Status 1 | . . 1 . . . . . Hauler Manifests 1 | . . 1 . . . . . Zone Layout 1 | . . 1 . . . . . Fabricator Hacks . | . . . . . . . . Repair Station Hacks . | . . . . . . . . Recycling Unit Hacks 1 | . 1 . . . . . . Retrieve Components 1 | . 1 . . . . . . Scanalyzer 3 | . . 3 . . . . . Insert Component 1 | . . 1 . . . . . Analyze 2 | . . 2 . . . . . Garrison Access Hacks . | . . . . . . . . Unauthorized Hacks . | . . . . . . . . Terminals . | . . . . . . . . Fabricators . | . . . . . . . . Repair Stations . | . . . . . . . . Recycling Units . | . . . . . . . . Scanalyzers . | . . . . . . . . Garrison Access . | . . . . . . . . Data Cores Recovered . | . . . . . . . . Used . | . . . . . . . . Hacking Detections 10 | . . 3 . 2 4 1 . Full Trace Events . | . . . . . . . . Feedback Events . | . . . . . . . . Feedback Blocked . | . . . . . . . . Robot Schematics Acquired . | . . . . . . . . Robots Built . | . . . . . . . . Authchips . | . . . . . . . . Time . | . . . . . . . . Total Robot Build Rating . | . . . . . . . . Part Schematics Acquired 1 | . . 1 . . . . . Parts Built . | . . . . . . . . Authchips . | . . . . . . . . Time . | . . . . . . . . Total Part Build Rating . | . . . . . . . . Parts Repaired . | . . . . . . . . Time . | . . . . . . . . Parts Recycled . | . . . . . . . . Recycled Matter . | . . . . . . . . Retrieved Matter . | . . . . . . . . Retrieved Components . | . . . . . . . . Parts Scanalyzed 1 | . . 1 . . . . . Part Schematics Acquired 1 | . . 1 . . . . . Parts Damaged . | . . . . . . . . Bothacking | -11 -10 -9 -9 -8 -7 -6 -6 ------------ Run | Scr Mat Mat Min Mat Fac Fac Low Used RIF Installer . | . . . . . . . . Robots Hacked . | . . . . . . . . Non-combat . | . . . . . . . . Combat . | . . . . . . . . Robot Hacks Applied . | . . . . . . . . Relay Couplers Released . | . . . . . . . . Fabnet Peak Effective % . | . . . . . . . . Robots Rewired . | . . . . . . . . Allies Hacked . | . . . . . . . . Hacks Repelled . | . . . . . . . . Allies | -11 -10 -9 -9 -8 -7 -6 -6 -------- Run | Scr Mat Mat Min Mat Fac Fac Low Total Allies . | . . . . . . . . Largest Group . | . . . . . . . . Highest-Rated Group . | . . . . . . . . Highest-Rated Ally . | . . . . . . . . Total Orders . | . . . . . . . . Ally Attacks . | . . . . . . . . Total Damage . | . . . . . . . . Kills . | . . . . . . . . Allies Corrupted . | . . . . . . . . Allies Melted . | . . . . . . . . Intel | -11 -10 -9 -9 -8 -7 -6 -6 ------- Run | Scr Mat Mat Min Mat Fac Fac Low Robot Analysis Total 4 | . 2 . . 1 . 1 . Derelict Logs Recovered 3 | . . . 2 . . . 1 Drone Launches . | . . . . . . . . Drone Recoveries . | . . . . . . . . Exploration | -11 -10 -9 -9 -8 -7 -6 -6 ------------- Run | Scr Mat Mat Min Mat Fac Fac Low Turns Passed 1472 | . 452 400 132 194 117 26 151 Spaces Moved 1931 | 1 332 355 334 298 341 76 194 Core . | . . . . . . . . Treads 87 | . . 87 . . . . . Legs 390 | 1 332 57 . . . . . Wheels . | . . . . . . . . Hover . | . . . . . . . . Flight 1454 | . . 211 334 298 341 76 194 Fastest Speed 29 | 120 120 34 34 29 31 34 34 Average Speed 58 | 120 120 86 34 30 31 34 38 Slowest Speed 320 | 120 190 320 34 31 110 34 112 Overloaded Moves . | . . . . . . . . Propulsion Burnouts . | . . . . . . . . Robots Hopped 15 | . . 3 2 5 5 . . Cave-ins Triggered . | . . . . . . . . Exploration Rate (%) 25 | 2 45 25 59 26 10 3 36 Regions Visited 7 Branch Regions 2 Pre-discovered Areas 1 | . . . 1 . . . . Known Exits Taken 2 | . . . . . 1 1 . Unknown Exits Taken 5 | 1 1 1 1 1 . . . Scrap Searched 2 | . . . 2 . . . . Spaces Dug . | . . . . . . . . Terrain Destroyed 17 | . 14 3 . . . . . Melee . | . . . . . . . . Projectile . | . . . . . . . . AOE 17 | . 14 3 . . . . . Terrain Rammed . | . . . . . . . . Walls Destroyed . | . . . . . . . . Machines Disabled . | . . . . . . . . Actions | -11 -10 -9 -9 -8 -7 -6 -6 --------- Run | Scr Mat Mat Min Mat Fac Fac Low Total 2206 | . 371 418 340 389 343 75 270 Wait 140 | . 13 4 . 49 . . 74 Move 1896 | . 331 348 329 288 331 75 194 Hop 13 | . . 3 2 4 4 . . Pick Up 29 | . 6 13 2 7 1 . . Fast Attach 24 | . 4 11 . 5 4 . . Attach 11 | . 1 3 . 4 1 . 2 Detach 8 | . . 2 . 6 . . . Swap 14 | . 3 1 . 10 . . . Drop 38 | . 5 17 2 12 2 . . Fire 31 | . 7 15 5 4 . . . Melee . | . . . . . . . . Ram . | . . . . . . . . Kick 1 | . 1 . . . . . . Crush 1 | . . 1 . . . . . Escape Stasis . | . . . . . . . . Rewire . | . . . . . . . . Trap . | . . . . . . . . Miscellaneous . | . . . . . . . . Route ------- -11/Scrapyard -10/Materials -9/Materials -9/Mines -8/Materials -7/Factory -6/Factory -6/Lower Caves History --------- Turn | Location | Event 1 | -11/Scrapyard | Discovered new exit (range 0) 1 | -11/Scrapyard | Entered Materials 314 | -10/Materials | Build established: Mutant 435 | -10/Materials | Discovered new exit (range 16) 453 | -10/Materials | Entered another Materials area 453 | -9/Materials | Evolved 2 slots: Propulsion x1, Utility x1 540 | -9/Materials | Lost 3 parts (1n2w) 852 | -9/Materials | Discovered new exit (range 6) 853 | -9/Materials | Entered Mines 956 | -9/Mines | Discovered new exit (range 14) 968 | -9/Mines | Learned location of 1 exit from Proximity Caves 985 | -9/Mines | Entered Materials 985 | -8/Materials | Evolved 2 slots: Propulsion x1, Utility x1 1173 | -8/Materials | Discovered new exit (range 14) 1179 | -8/Materials | Entered Factory 1179 | -7/Factory | Evolved 2 slots: Power x1, Utility x1 1201 | -7/Factory | Identified exit to DSF 1294 | -7/Factory | Discovered new exit (range 6) 1296 | -7/Factory | Identified exit to Factory 1296 | -7/Factory | Entered another Factory area 1296 | -6/Factory | Evolved 2 slots: Propulsion x1, Utility x1 1319 | -6/Factory | Discovered new exit (range 7) 1322 | -6/Factory | Identified exit to Lower Caves 1322 | -6/Factory | Entered Lower Caves 1364 | -6/Lower Caves | Learned 8 Factory zone layouts 1423 | -6/Lower Caves | Core integrity fell below 50% 1443 | -6/Lower Caves | Lost 9 parts (5n2u2w) 1455 | -6/Lower Caves | Core integrity fell below 20% 1473 | -6/Lower Caves | Destroyed by S-27 Virus with Autogun Last Messages --------------- Downloading analysis... Samaritan Tier: 4 As a number of Derelicts have insufficient or unreliable power supplies, some crafty derelict came up with the idea to create mobile recharging stations that generate and transmit energy to all nearby robot systems. 01320_ K-01 Serf pushes G-50 Soldier. 01322_ EXIT=IDENTIFIED: LOWER CAVES LOCATION=LOWER CAVES GOAL=ESCAPE 01364_ Acquired derelict log, extracted data. Data stored: Factory zone layouts (x8). 01376_ Xenon Bombardment Thruster destroyed. 01387_ Weight Redist. System destroyed. 01391_ Imp. Flight Unit destroyed. 01393_ Prc. Beam Rifle destroyed. 01405_ Imp. Flight Unit destroyed. 01409_ Xenon Bombardment Thruster destroyed. 01412_ Imp. Flight Unit destroyed. 01444_ Med. Storage Unit destroyed. Map ----- +----------------------------------------------------+ | ?????????????????????????????????????????????????? | | ??????????#######????????###???#####?????????????? | | ?????????## ####????## ##?## ##????????????? | | ??????#### ##???# ### #????????????? | | ??????? ###??# #?????????????? | | ?????????# ##?# #?????????????? | | ????????## ### #?????????????? | | ???????## ######????????? | | ??????## ## #????????? | | ??????# ## ## #????????? | | ??????## ## #????????? | | ???????#### ###### ### #????????? | | ??????????# #????####?# #????????? | | ???????#### #?????????# #????????? | | ???????# #### #?????????# #????????? | | ??????# #### ##??####?????????# #????????? | | ??????## ###### ##????????????????# #????????? | | ???????####?## ##?????####???????# #????????? | | ????????????# ####### #???????# #????????? | | ????????????# #???????# #????????? | | ????????????# s #???????# #????????? | | ????????????#### s ##??????# #????????? | | ???????????????## ss #??###?# #????????? | | ????????????????## #?## ## #????????? | | ?????????????????## = ##?# # #????????? | | ??????????????????## @ ##?# # #????????? | | ???????????????????### = #### # #????????? | | ?????????????????????## #?# ##???????? | | ??????????????????????## ### ##?## #???????? | | ???????????????????????# ##?###???# ##??????? | | ???????????????????????# ##???????## #??????? | | ???????????????????????###??###???# #??????? | | ?????????????????????????# ## ???# #??????? | | ?????????????????????????# ?## ### #??????? | | ?????????????????????????# ## #??###??????? | | ???????????????????? #???????????? | | ???????????????????? ##### #???????????? | | ????????????????????????????????# ##???????????? | | ????????????????????????????????# #????????????? | | ????????????????????????????????# ##???????????? | | ????????????????????????????????## #???????????? | | ?????????????????????????????????# #???????????? | | ?????????????????????????????????# ##???????????? | | ?????????????????????????????????# #????????? ??? | | ?????????????????????????????????# #??????? ?? | | ?????????????????????????????????# #?????? ? | | ?????????????????????????????????# ###### | | ?????????????????????????????##### #???? | | ?????????????????????????????# #???? | | ?????????????????????????????# #### #???? | +----------------------------------------------------+ Best States ------------- Heat Dissipation 37 Energy Generation 24 Energy Capacity 250 Matter Stores 300 Matter Capacity 300 Sight Range 16 Robot Scan Range 14 Terrain Scan Range 16 Terrain Scan Density 110 ECM Strength 2 Additional Mass Support 6 Armor Coverage 150 Power Shielding 66 Evasion (%) 64 Recoil Reduction 3 Item Schematics ----------------- Imp. Flight Unit | -9/Materials | Scanalyzed Robot Schematics ------------------ None Fabricated ------------ Nothing Alien Tech Used ----------------- None Achievements -------------- Omniscient Cartographer Challenges ------------ None Game ------ Seed SpikedSingularityChronowheel Manual? 0 Play Time 00:43:11 Cumulative 15.3 hours Start 2022.12.09 @ 17:06:29 End 2022.12.10 @ 18:52:29 Sessions 3 Manual Loads 0 Difficulty Rogue Special Mode None Game No. 13 Rogue 13 Adventurer 0 Explorer 0 Win Type - Total 1 Types 1/0/0/0/0/0/0/0/0 Lore% 22 Gallery% 21 Achievement% 22 Wizard Run 0 Options --------- ASCII 1 Keyboard 1 Movement Numpad Keybinds 0 Fullscreen 1 Font 18/SmallcapsGlow Map View 76x50 Tactical HUD 1 Map Filters NONE Filters NONE Steam 1 RUN: c362b0fd-e8d3-470d-980f-6923ee78f0e7